Cogmind - Beta 14 @@@ ROGUE MODE // 2024.08.19 @ 21:06:11 Player: Ladmageddon Result: Destroyed by H-61 Shepherd with Heavy Assault Cannon Performance ------------- Evolutions (2) 1000 Regions Visited (4) 800 Robots Destroyed (39) 195 Value Destroyed (1236) 1236 Prototype IDs (0) 0 Alien Tech Used (0) 0 Bonus (0) 0 TOTAL SCORE: 3231 Bonus ------- None Cogmind --------- Core Integrity 0/550 Matter 300/300 Energy 82/100 System Corruption 0% Temperature Cool (0) Movement Hovering (320) Ox3 Location -8/Materials Parts ------- > --- POWER (2) -------- (None) > --- PROPULSION (3) --- Backup Propulsion III > --- UTILITY (3) ------ Large Storage Unit Improved Terrain Scan Processor Backup Plating III > --- WEAPON (3) ------- Backup Laser III Mining Claw > --- INVENTORY (15) --- Flight Unit Heat Sink Heat Sink Heat Sink Medium Storage Unit Medium Matter Pod (100) System Shield Tractor Beam Backup Laser III Backup Laser III Backup Laser III Backup Laser III Peak State ------------ > --- POWER ------------ Light Ion Engine Backup Power III > --- PROPULSION ------- Backup Propulsion III Backup Propulsion III Backup Propulsion III > --- UTILITY ---------- Large Storage Unit Improved Terrain Scan Processor Backup Plating III > --- WEAPON ----------- Backup Laser III Backup Laser III Mining Claw > --- INVENTORY -------- Heat Sink Heat Sink Heat Sink Medium Storage Unit Medium Matter Pod Backup Plating III System Shield Tractor Beam Backup Laser III Backup Laser III Backup Laser III [Rating: 29] Favorites ----------- Power Ion Engine Engine Ion Engine Power Core Light Nuclear Core Propulsion Improved Treads Treads Improved Treads Wheel Wheel Hover Unit Backup Propulsion III Utility Large Storage Unit Device Heat Sink Storage Large Storage Unit Processor Improved Terrain Scan Processor Protection Light Armor Plating Weapon Heavy Assault Rifle Energy Gun Beam Rifle Ballistic Gun Heavy Assault Rifle Slashing Weapon Mining Claw Build | -11 -10 -9 -9 -8 ------- Run | Yrd Mat Mat Min Mat Slots Evolved 4 | . . 2 . 2 Power 1 | . . . . 1 Propulsion 1 | . . 1 . . Utility 1 | . . 1 . . Weapon 1 | . . . . 1 Parts Attached 57 | 6 5 12 4 30 Power 5 | 1 . 1 . 3 Engine 4 | 1 . 1 . 2 Core 1 | . . . . 1 Reactor . | . . . . . Propulsion 16 | 2 2 3 1 8 Treads 8 | . 2 3 1 2 Leg . | . . . . . Wheel 5 | 2 . . . 3 Hover 3 | . . . . 3 Flight . | . . . . . Utility 20 | 1 2 7 . 10 Device 9 | . 2 4 . 3 Storage 4 | 1 . 2 . 1 Processor 2 | . . . . 2 Hackware . | . . . . . Protection 5 | . . 1 . 4 Artifact . | . . . . . Weapon 16 | 2 1 1 3 9 Energy Gun 7 | . . 1 1 5 Energy Cannon . | . . . . . Ballistic Gun 7 | 2 1 . 1 3 Ballistic Cannon . | . . . . . Launcher . | . . . . . Special Weapon . | . . . . . Impact Weapon . | . . . . . Slashing Weapon 2 | . . . 1 1 Piercing Weapon . | . . . . . Special Melee Weapon . | . . . . . Unidentified Prototypes . | . . . . . Parts Lost 30 | . 1 4 2 23 Power 4 | . . . . 4 Propulsion 9 | . . 2 . 7 Utility 8 | . 1 2 1 4 Weapon 9 | . . . 1 8 Highest Loss Streak 7 | . 1 2 2 7 To Critical Strikes . | . . . . . Average Slot Usage (%) 82 | . 97 94 97 60 Engine 9 | . 14 11 11 4 Treads 20 | . 26 31 33 4 Wheel 1 | . 1 . . 2 Hover 2 | . . . . 6 Device 11 | . 12 15 20 4 Storage 11 | . 14 11 11 9 Processor 2 | . . . . 6 Protection 2 | . . 3 . 3 Energy Gun 5 | . . 7 9 6 Ballistic Gun 12 | . 28 14 11 2 Slashing Weapon 3 | . . . 1 8 Peak Build Rating 29 | 6 12 15 15 29 Average Rating 12 | 5 10 13 14 14 On Entrance 9 | . 6 12 15 13 Naked Turns . | . . . . . Heaviest Build 43 | 13 17 42 41 43 Greatest Support 66 | 20 46 66 66 66 Greatest Overweight (x) 8 | . . . . 8 Average Overweight (x) . | . . . . 1 Largest Inventory Capacity 15 | 8 8 15 15 15 Average Capacity 12 | 7 8 12 15 15 Most Carried 15 | 5 8 11 11 15 Average Carried 7 | 3 7 8 8 8 Final Capacity 15 | 8 8 15 15 15 Final Carried 12 | 4 8 11 8 12 Class Distribution -------------------- 98% | Mutant Dominant Class ---------------- Mutant | -10/Materials Mutant | -9/Materials Mutant | -9/Mines Mutant | -8/Materials Resources | -11 -10 -9 -9 -8 ----------- Run | Yrd Mat Mat Min Mat Matter Collected 1173 | 172 215 317 74 395 Remotely . | . . . . . Salvage Created 1576 | . 254 437 . 885 Parts 79 | . 12 22 . 45 Haulers Intercepted . | . . . . . Recyclers Shooed 2 | . 1 . . 1 Parts Field Recycled 3 | . . . 3 . Retrieved Matter 6 | . . . 6 . Parts Self-Destructed . | . . . . . Prevented . | . . . . . Kills | -11 -10 -9 -9 -8 ------- Run | Yrd Mat Mat Min Mat Combat Hostiles Destroyed 35 | . 6 11 . 18 Melee 3 | . . . . 3 Guns 32 | . 6 11 . 15 Classes Destroyed 7 | . 1 2 . 4 Worker 2 | . . . . 2 Recycler 1 | . . . . 1 Watcher 1 | . . . . 1 Swarmer 9 | . . 3 . 6 Grunt 17 | . 6 4 . 7 Sentry 8 | . . 4 . 4 Hunter 1 | . . . . 1 Best Kill Streak 5 | . 3 4 . 5 Combat Bots Only 5 | . 3 4 . 5 Max Kills in Single Turn 1 | . 1 1 . 1 Gunslinging . | . . . . . Exploded . | . . . . . Melee 1 | . . . . 1 Uniques/NPCs Destroyed . | . . . . . Combat | -11 -10 -9 -9 -8 -------- Run | Yrd Mat Mat Min Mat Hostile Shots Fired 400 | . 55 86 25 234 Missed 100 | . 16 18 6 60 Damage Taken 4157 | . 324 823 643 2367 Core 816 | . 42 94 86 594 Absorbed by Shields 204 | . 127 77 . . Core Remaining (%) 79 | 100 83 . 55 . Volleys Fired 156 | . 30 39 8 79 Largest 2 | . 2 2 2 2 Hottest 90 | . 43 79 63 90 Shots Fired 257 | . 60 79 10 108 Gun 257 | . 60 79 10 108 Cannon . | . . . . . Launcher . | . . . . . Special . | . . . . . Kinetic 163 | . 60 53 8 42 Thermal 89 | . . 26 . 63 Explosive . | . . . . . Electromagnetic 5 | . . . 2 3 Robot Hit Streak 15 | . 7 15 2 10 Robot Miss Streak 5 | . 3 2 3 5 Penetration Max . | . . . . . Secondary Targets 3 | . 2 1 . . Max Gunslinging Chain 1 | . 1 1 . . Shots Hit Robots 191 | . 38 60 4 89 Core Hits 75 | . 15 19 1 40 Critical Kills . | . . . . . Critical Parts Destroyed . | . . . . . Critical Strikes 2 | . . . . 2 Burn 2 | . . . . 2 Melee Attacks 16 | . . . . 16 Impact . | . . . . . Slashing 16 | . . . . 16 Piercing . | . . . . . Sneak Attacks 5 | . . . . 5 Combat Hostiles . | . . . . . Follow-up Attacks . | . . . . . Damage Inflicted 2832 | . 453 902 60 1417 Guns 2390 | . 453 902 52 983 Cannons . | . . . . . Explosions . | . . . . . Melee 434 | . . . . 434 Ramming 8 | . . . 8 . Kinetic 1492 | . 453 560 42 437 Thermal 853 | . . 342 . 511 Explosive . | . . . . . Electromagnetic 45 | . . . 10 35 Impact . | . . . . . Slashing 434 | . . . . 434 Piercing . | . . . . . Highest Corruption 2 | . . 2 2 . Average Corruption 2 | . . 2 2 . Corruption Purged . | . . . . . Corruption Blocked . | . . . . . Effects 5 | . . 2 3 . Message Errors 2 | . . 1 1 . Matter Fused 1 | . . . 1 . Heat Flow Errors 1 | . . . 1 . Misfires 1 | . . 1 . . Overload Shots . | . . . . . Overflow Damage 36 | . . . . 36 Projectiles . | . . . . . Explosions . | . . . . . Melee 36 | . . . . 36 Knockbacks . | . . . . . Impact . | . . . . . Kinetic . | . . . . . Secondary . | . . . . . Self-Inflicted Damage . | . . . . . Shots . | . . . . . Rammed 1 | . . . 1 . Targets Rammed 1 | . . . 1 . Kicked . | . . . . . Crushed . | . . . . . Highest Temperature 229 | . 12 85 229 212 Average Temperature 51 | . 5 27 124 66 Received Heat Transfer 1355 | . 184 323 20 828 Effects 2 | . . . . 2 Interference 2 | . . . . 2 Siege Activations . | . . . . . Robots Corrupted . | . . . . . Combat Hostiles . | . . . . . Parts Fried . | . . . . . Impact Corruptions . | . . . . . Robots Melted . | . . . . . Combat Hostiles . | . . . . . Parts Melted 6 | . . 1 . 5 Heat Transferred 2442 | . . 888 . 1554 Parts Sabotaged . | . . . . . Parts Stolen . | . . . . . Parts Stripped . | . . . . . Power Chain Reactions . | . . . . . Alert | -11 -10 -9 -9 -8 ------- Run | Yrd Mat Mat Min Mat Peak Influence 236 | . 112 236 79 175 Initial 64 | . . 16 64 28 Average 71 | . 31 117 65 69 Maximum Alert Level 1 | . . 1 . . Low Security (%) 97 | 100 100 90 100 100 Level 1 2 | . . 9 . . Level 2 . | . . . . . Level 3 . | . . . . . Level 4 . | . . . . . Level 5 . | . . . . . High Security . | . . . . . Max Security . | . . . . . Squads Dispatched 6 | . 1 2 . 3 Investigation 2 | . 1 . . 1 Extermination . | . . . . . Reinforcement 4 | . . 2 . 2 Assault . | . . . . . Garrison . | . . . . . Intercept . | . . . . . Searches Triggered . | . . . . . Construction Impeded 1 | . . 1 . . Haulers Reinforced . | . . . . . Active Scanning Responses . | . . . . . Cargo Convoy Interrupts . | . . . . . Stealth | -11 -10 -9 -9 -8 --------- Run | Yrd Mat Mat Min Mat Distress Signals 1 | . . . . 1 Communications Jammed . | . . . . . Distress Signals . | . . . . . Times Spotted 68 | . 9 15 19 25 Peak Tracking Total 12 | . 4 4 12 5 Tactical Retreats 3 | . . 1 . 2 Traps | -11 -10 -9 -9 -8 ------- Run | Yrd Mat Mat Min Mat Traps Triggered 2 | . 1 1 . . Indirectly . | . . . . . Trap Hack Attempts . | . . . . . Triggered . | . . . . . Disarmed . | . . . . . Reprogrammed . | . . . . . Reused . | . . . . . Traps Extracted . | . . . . . Installed . | . . . . . Triggered . | . . . . . Machines | -11 -10 -9 -9 -8 ---------- Run | Yrd Mat Mat Min Mat Machines Disabled . | . . . . . Max in Single Turn . | . . . . . Machines Repaired . | . . . . . Machines Dismantled . | . . . . . Machines Sabotaged . | . . . . . Overloaded Fab Kills . | . . . . . Hacking | -11 -10 -9 -9 -8 --------- Run | Yrd Mat Mat Min Mat Machines Accessed 7 | . 1 4 . 2 Terminals 6 | . 1 4 . 1 Fabricators . | . . . . . Repair Stations . | . . . . . Recycling Units . | . . . . . Scanalyzers 1 | . . . . 1 Garrison Access . | . . . . . Total Hacks 20 | . 2 13 . 5 Successful 10 | . 1 6 . 3 Failed 10 | . 1 7 . 2 Catastrophic . | . . . . . Database Lockouts . | . . . . . Manual . | . . . . . Terminals 18 | . 2 13 . 3 Fabricators . | . . . . . Repair Stations . | . . . . . Recycling Units . | . . . . . Scanalyzers 2 | . . . . 2 Garrison Access . | . . . . . Terminal Hacks 9 | . 1 6 . 2 Record 6 | . . 4 . 2 Alert Level 1 | . . 1 . . Surveillance Status 1 | . 1 . . . Zone Layout 1 | . . 1 . . Fabricator Hacks . | . . . . . Repair Station Hacks . | . . . . . Recycling Unit Hacks . | . . . . . Scanalyzer 1 | . . . . 1 Insert Component 1 | . . . . 1 Garrison Access Hacks . | . . . . . Unauthorized Hacks . | . . . . . Terminals . | . . . . . Fabricators . | . . . . . Repair Stations . | . . . . . Recycling Units . | . . . . . Scanalyzers . | . . . . . Garrison Access . | . . . . . Data Cores Recovered . | . . . . . Used . | . . . . . Hacking Detections 6 | . 1 3 . 2 Full Trace Events 1 | . . . . 1 Feedback Events . | . . . . . Feedback Blocked . | . . . . . Robot Schematics Acquired . | . . . . . Robots Built . | . . . . . Authchips . | . . . . . Time . | . . . . . Total Robot Build Rating . | . . . . . Part Schematics Acquired . | . . . . . Parts Built . | . . . . . Authchips . | . . . . . Time . | . . . . . Total Part Build Rating . | . . . . . Parts Repaired . | . . . . . Time . | . . . . . Parts Recycled . | . . . . . Recycled Matter . | . . . . . Retrieved Matter . | . . . . . Retrieved Components . | . . . . . Parts Scanalyzed . | . . . . . Part Schematics Acquired . | . . . . . Parts Damaged . | . . . . . Bothacking | -11 -10 -9 -9 -8 ------------ Run | Yrd Mat Mat Min Mat Used RIF Installer . | . . . . . Robots Hacked . | . . . . . Non-combat . | . . . . . Combat . | . . . . . Robot Hacks Applied . | . . . . . Relay Couplers Released . | . . . . . Fabnet Peak Effective % . | . . . . . Robots Rewired . | . . . . . Allies Hacked . | . . . . . Hacks Repelled . | . . . . . Allies | -11 -10 -9 -9 -8 -------- Run | Yrd Mat Mat Min Mat Total Allies . | . . . . . Largest Group . | . . . . . Highest-Rated Group . | . . . . . Highest-Rated Ally . | . . . . . Total Orders . | . . . . . Ally Attacks . | . . . . . Total Damage . | . . . . . Kills . | . . . . . Allies Corrupted . | . . . . . Allies Melted . | . . . . . Intel | -11 -10 -9 -9 -8 ------- Run | Yrd Mat Mat Min Mat Robot Analysis Total . | . . . . . Derelict Logs Recovered . | . . . . . Drone Launches . | . . . . . Drone Recoveries . | . . . . . Exploration | -11 -10 -9 -9 -8 ------------- Run | Yrd Mat Mat Min Mat Turns Passed 2377 | 157 426 683 281 830 Spaces Moved 1035 | 49 216 329 160 281 Core 50 | 19 . . . 31 Treads 753 | . 190 329 160 74 Legs . | . . . . . Wheels 136 | 30 26 . . 80 Hover 96 | . . . . 96 Flight . | . . . . . Fastest Speed 50 | 50 80 160 160 95 Average Speed 159 | 68 150 160 160 180 Slowest Speed 450 | 80 160 160 160 450 Overloaded Moves . | . . . . . Propulsion Burnouts . | . . . . . Robots Hopped . | . . . . . Cave-ins Triggered . | . . . . . Exploration Rate (%) 28 | 4 32 34 46 25 Regions Visited 4 Branch Regions 1 Pre-discovered Areas . | . . . . . Known Exits Taken . | . . . . . Unknown Exits Taken 4 | 1 1 1 1 . Scrap Searched 2 | . . . 2 . Spaces Dug . | . . . . . Terrain Destroyed . | . . . . . Melee . | . . . . . Projectile . | . . . . . AOE . | . . . . . Terrain Rammed . | . . . . . Walls Destroyed . | . . . . . Machines Disabled . | . . . . . Actions | -11 -10 -9 -9 -8 --------- Run | Yrd Mat Mat Min Mat Total 1482 | 172 261 407 174 468 Wait 150 | 108 . 12 . 30 Move 1031 | 48 215 328 159 281 Hop . | . . . . . Pick Up 57 | 10 8 11 . 28 Fast Attach 4 | . 1 2 . 1 Attach 34 | 6 1 5 1 21 Detach . | . . . . . Swap 19 | . 3 5 3 8 Drop 14 | . 3 5 2 4 Fire 156 | . 30 39 8 79 Melee 16 | . . . . 16 Ram . | . . . . . Kick . | . . . . . Crush 1 | . . . 1 . Escape Stasis . | . . . . . Rewire . | . . . . . Trap . | . . . . . Miscellaneous . | . . . . . Route ------- -11/Scrapyard -10/Materials (discovered 2 exits: *Mat / [*Min]) -9/Materials -9/Mines -8/Materials (discovered 1 exit: [*Fac]) History --------- Turn | Location | Event 8 | -11/Scrapyard | Discovered new exit (range 15) 158 | -11/Scrapyard | Entered Materials 316 | -10/Materials | Build established: Mutant 524 | -10/Materials | Discovered new exit (range 8) 529 | -10/Materials | Discovered new exit (range 15) 584 | -10/Materials | Entered another Materials area 584 | -9/Materials | Evolved 2 slots: Propulsion x1, Utility x1 1237 | -9/Materials | Discovered new exit (range 9) 1267 | -9/Materials | Entered Mines 1464 | -9/Mines | Assembled infested the area 1469 | -9/Mines | Assisted by a Guerilla fighting off Assembled 1497 | -9/Mines | Discovered new exit (range 11) 1548 | -9/Mines | Entered Materials 1548 | -8/Materials | Evolved 2 slots: Power x1, Weapon x1 1621 | -8/Materials | Lost 5 parts (1p2n2w) 1814 | -8/Materials | Lost 3 parts (1n1u1w) 1879 | -8/Materials | Core integrity fell below 50% 1958 | -8/Materials | Lost 7 parts (1n2u4w) 2285 | -8/Materials | Discovered new exit (range 16) 2316 | -8/Materials | Core integrity fell below 20% 2363 | -8/Materials | Lost 4 parts (1p1n1u1w) 2378 | -8/Materials | Destroyed by H-61 Shepherd with Heavy Assault Cannon Last Messages --------------- Terminal disabled. G-47 Trooper misfires. C-30 ARC bursts open, deploying its payload. S-10 Pest unfolds itself. G-47 Trooper heat damages Imp. Heat Sink. Particle Gun melted. Lgt. Nuclear Core melted. G-47 Trooper destroyed. Acquired 5 matter. Backup Propulsion III destroyed. M-28 Smith repairs G-47 Trooper. Shock Rifle destroyed. ALERT: Suspicious intruders detected, dispatching Specialist reinforcements to area. G-47 Trooper destroyed. S-10 Pest destroyed. Lgt. Ion Engine melted. S-10 Pest destroyed. Acquired 5 matter. Acquired Flight Unit. Map ----- +----------------------------------------------------+ | ?????????????????????????????????? | | ?????????????????????????????????? | | ?????????????????????????????????? | | ?????????????????????????????????? | | ?????????????????????????????????? | | ?????????????????????????????????? | | ?????????????????????????????????? | | ????????????????????????? H ?????? | | ????????????????????????? #????? | | ????????????????????????? #????? | | ????????????????????????? #????? | | ????????????????????????? #####? | | ????????????????????????? ||#? | | ????????????????????????? ||?? | | ????????????????????????# !??? | | ????????????????????????# !??? | | ????????????????????????+ ???? | | ????????????????????????# ????? | | ????????????????????????# #????? | | ??????????????########### #????? | | ??????????????# # #????? | | ??????????????# # #????? | | ??????????????# !!! [ #=% #????? | | ??????????????# !!! =%+%% #????? | | ??????????????# !! [#% #????? | | ??????????????# ! #@ #????? | | ??????????????# # % #????? | | ??????????????#= # #????? | | ??????????????########### #????? | | ?????????????????# #m #????? | | ?????????????????#"" + #????? | | ?????????????????#"Y # #????? | | ?????????????????#"" # #????? | | ?????????????????# = ?# #????? | | ?????????????????# ?# #????? | | ?????????????????#+###??# #????? | | ????????????????## ###### #????? | | ????????? %= #????? | | ??????????????###########t #????? | | ??????????????# ## #????? | | ??????????????# """ ## ##???? | | ??????????????# """ # #???? | | ??????????????#""" """ # #???? | | ??????????????#""" / #???? | | ??????????????#"S """ # #???? | | ??????????????#""" """ # #???? | | ??"???????????# "" """ ## ###### | | """???????????# ## # # | | """ ??????????########### # " # | | ????????????????# + + T # | +----------------------------------------------------+ Best States ------------- Heat Dissipation 48 Energy Generation 21 Energy Capacity 325 Matter Stores 395 Matter Capacity 400 Sight Range 16 Terrain Scan Density 110 Armor Coverage 150 Evasion (%) 50 Recoil Reduction 3 Item Schematics ----------------- None Robot Schematics ------------------ None Fabricated ------------ Nothing Alien Tech Used ----------------- None Achievements -------------- Slippery One Challenges ------------ None Game ------ Seed FusionFortressProtection Manual? 0 Play Time 00:29:11 Cumulative 7.8 hours Start 2024.08.19 @ 20:37:36 End 2024.08.19 @ 21:06:11 Sessions 1 Manual Loads 0 Difficulty Rogue Special Mode None Game No. 17 Rogue 14 Adventurer 3 Explorer 0 Win Type - Total 0 Types 0/0/0/0/0/0/0/0/0 Lore% 2 Gallery% 18 Achievement% 12 Wizard Run 0 Options --------- Layout 1 ASCII 0 Keyboard 0 Movement Mouse Keybinds 0 Fullscreen 1 Font 24/Smallcaps Map View 50x35 Zoom Use 0% Tactical HUD 0 Map Filters NONE Filters NONE Steam 1 RUN: 04df6be4-a388-48b4-8fc9-c4bd348266c0